[Event "Titled Tuesday Blitz March 28 Early 2023"]
[White "Hartikainen, Jarmo"]
[Black "Slayyy_200"]
[WhiteFideId "503134"]
[WhiteElo "2135"]
[BlackElo "2097"]
[Result "1-0"]
[Round "10"]
[TimeControl "180+2"]
[Date "2023.03.28"]
[WhiteClock "0:00:08"]
[BlackClock "0:00:03"]

1. e4 {[%clk 0:03:00]}  c5 {[%clk 0:02:59]} 2. c3 {[%clk 0:03:00]}  d5 {[%clk 0:02:58]} 3. exd5 {[%clk 0:03:00]}  Qxd5 {[%clk 0:02:58]} 4. d4 {[%clk 0:03:00]}  Nc6 {[%clk 0:02:55]} 5. Nf3 {[%clk 0:03:00]}  Bf5 {[%clk 0:02:55]} 6. Na3 {[%clk 0:02:45]}  e6 {[%clk 0:02:46]} 7. Be3 {[%clk 0:02:37]}  cxd4 {[%clk 0:02:43]} 8. Nb5 {[%clk 0:02:31]}  O-O-O {[%clk 0:01:51]} 9. Nbxd4 {[%clk 0:02:19]}  Nxd4 {[%clk 0:01:49]} 10. Nxd4 {[%clk 0:02:14]}  Bc5 {[%clk 0:01:38]} 11. Qf3 {[%clk 0:01:02]}  Bxd4 {[%clk 0:01:08]} 12. Qxd5 {[%clk 0:01:01]}  Bxc3+ {[%clk 0:01:06]} 13. bxc3 {[%clk 0:01:00]}  Rxd5 {[%clk 0:01:06]} 14. Bxa7 {[%clk 0:01:00]}  Nf6 {[%clk 0:01:00]} 15. Be2 {[%clk 0:00:58]}  Ne4 {[%clk 0:00:58]} 16. O-O {[%clk 0:00:53]}  Rhd8 {[%clk 0:00:54]} 17. Be3 {[%clk 0:00:47]}  Kb8 {[%clk 0:00:49]} 18. Rfc1 {[%clk 0:00:46]}  Rc8 {[%clk 0:00:46]} 19. c4 {[%clk 0:00:46]}  Ra5 {[%clk 0:00:44]} 20. h3 {[%clk 0:00:26]}  e5 {[%clk 0:00:41]} 21. f3 {[%clk 0:00:19]}  Nd6 {[%clk 0:00:40]} 22. g4 {[%clk 0:00:18]}  Be6 {[%clk 0:00:40]} 23. f4 {[%clk 0:00:18]}  Bxc4 {[%clk 0:00:35]} 24. fxe5 {[%clk 0:00:17]}  Bxe2 {[%clk 0:00:32]} 25. exd6 {[%clk 0:00:17]}  Rd8 {[%clk 0:00:29]} 26. Bf4 {[%clk 0:00:16]}  Ra4 {[%clk 0:00:27]} 27. Bg3 {[%clk 0:00:16]}  Ra3 {[%clk 0:00:27]} 28. Kf2 {[%clk 0:00:14]}  Bb5 {[%clk 0:00:23]} 29. Rc2 {[%clk 0:00:13]}  Bd7 {[%clk 0:00:23]} 30. Re1 {[%clk 0:00:12]}  Ra6 {[%clk 0:00:23]} 31. Re7 {[%clk 0:00:12]}  Rc6 {[%clk 0:00:23]} 32. Rxc6 {[%clk 0:00:12]}  Bxc6 {[%clk 0:00:23]} 33. Rxf7 {[%clk 0:00:12]}  Rd7 {[%clk 0:00:22]} 34. Rf8+ {[%clk 0:00:12]}  Ka7 {[%clk 0:00:22]} 35. Ke2 {[%clk 0:00:11]}  Kb6 {[%clk 0:00:22]} 36. Bf2+ {[%clk 0:00:11]}  Kb5 {[%clk 0:00:22]} 37. Bg3 {[%clk 0:00:10]}  Kc4 {[%clk 0:00:21]} 38. Rf4+ {[%clk 0:00:10]}  Kd5 {[%clk 0:00:21]} 39. Rb4 {[%clk 0:00:10]}  b5 {[%clk 0:00:20]} 40. Kd2 {[%clk 0:00:09]}  Kc5 {[%clk 0:00:20]} 41. Rb3 {[%clk 0:00:09]}  Bd5 {[%clk 0:00:20]} 42. Rc3+ {[%clk 0:00:08]}  Kb6 {[%clk 0:00:20]} 43. a3 {[%clk 0:00:08]}  Bc4 {[%clk 0:00:20]} 44. Bf2+ {[%clk 0:00:09]}  Kc6 {[%clk 0:00:20]} 45. Bg3 {[%clk 0:00:09]}  Kd5 {[%clk 0:00:21]} 46. Re3 {[%clk 0:00:09]}  Kd4 {[%clk 0:00:20]} 47. Re7 {[%clk 0:00:09]}  Rd8 {[%clk 0:00:19]} 48. Rxg7 {[%clk 0:00:09]}  Kc5 {[%clk 0:00:19]} 49. Rxh7 {[%clk 0:00:09]}  Kc6 {[%clk 0:00:18]} 50. g5 {[%clk 0:00:10]}  Rg8 {[%clk 0:00:18]} 51. h4 {[%clk 0:00:09]}  Bd5 {[%clk 0:00:17]} 52. Rc7+ {[%clk 0:00:09]}  Kb6 {[%clk 0:00:17]} 53. d7 {[%clk 0:00:09]}  Bb7 {[%clk 0:00:14]} 54. Rc3 {[%clk 0:00:08]}  Bc6 {[%clk 0:00:14]} 55. Ke2 {[%clk 0:00:07]}  Bxd7 {[%clk 0:00:14]} 56. Bf4 {[%clk 0:00:06]}  Bg4+ {[%clk 0:00:14]} 57. Kf2 {[%clk 0:00:05]}  Rh8 {[%clk 0:00:15]} 58. Kg3 {[%clk 0:00:05]}  Bf5 {[%clk 0:00:15]} 59. Be3+ {[%clk 0:00:05]}  Kb7 {[%clk 0:00:14]} 60. Rc5 {[%clk 0:00:05]}  Bg6 {[%clk 0:00:14]} 61. Rxb5+ {[%clk 0:00:05]}  Kc7 {[%clk 0:00:15]} 62. a4 {[%clk 0:00:06]}  Ra8 {[%clk 0:00:14]} 63. a5 {[%clk 0:00:06]}  Ra6 {[%clk 0:00:13]} 64. Bf4+ {[%clk 0:00:06]}  Kd7 {[%clk 0:00:13]} 65. Kg4 {[%clk 0:00:07]}  Ke7 {[%clk 0:00:12]} 66. h5 {[%clk 0:00:07]}  Be8 {[%clk 0:00:11]} 67. Rb7+ {[%clk 0:00:06]}  Kf8 {[%clk 0:00:12]} 68. Bd2 {[%clk 0:00:06]}  Bf7 {[%clk 0:00:09]} 69. Kf5 {[%clk 0:00:06]}  Be6+ {[%clk 0:00:08]} 70. Ke5 {[%clk 0:00:06]}  Bc8 {[%clk 0:00:07]} 71. Rb8 {[%clk 0:00:05]}  Rc6 {[%clk 0:00:07]} 72. a6 {[%clk 0:00:06]}  Rc5+ {[%clk 0:00:05]} 73. Kd6 {[%clk 0:00:06]}  Rc2 {[%clk 0:00:04]} 74. a7 {[%clk 0:00:06]}  Rxd2+ {[%clk 0:00:04]} 75. Ke5 {[%clk 0:00:06]}  Re2+ {[%clk 0:00:04]} 76. Kf4 {[%clk 0:00:07]}  Rf2+ {[%clk 0:00:04]} 77. Ke3 {[%clk 0:00:07]}  Ra2 {[%clk 0:00:03]} 78. a8=Q {[%clk 0:00:07]}  Rxa8 {[%clk 0:00:03]} 79. Rxa8 {[%clk 0:00:08]} 1-0


[Site "https://www.chess.com"]

[Event "Titled Tuesday Blitz March 28 Early 2023"]
[White "Erigaisi Arjun"]
[Black "Anton Guijarro, David"]
[WhiteFideId "35009192"]
[BlackFideId "2285525"]
[WhiteElo "2737"]
[BlackElo "2618"]
[Result "1-0"]
[Round "11"]
[TimeControl "180+2"]
[Date "2023.03.28"]
[WhiteClock "0:00:07"]
[BlackClock "0:00:06"]

1. b3 {[%clk 0:03:00]}  d5 {[%clk 0:02:58]} 2. Bb2 {[%clk 0:03:01]}  Bf5 {[%clk 0:02:58]} 3. d3 {[%clk 0:03:01]}  e6 {[%clk 0:02:58]} 4. Nd2 {[%clk 0:03:00]}  Nf6 {[%clk 0:02:57]} 5. g3 {[%clk 0:03:01]}  h6 {[%clk 0:02:57]} 6. Bg2 {[%clk 0:03:00]}  a5 {[%clk 0:02:56]} 7. e4 {[%clk 0:03:00]}  Bh7 {[%clk 0:02:56]} 8. a3 {[%clk 0:02:59]}  Bc5 {[%clk 0:02:52]} 9. exd5 {[%clk 0:02:43]}  exd5 {[%clk 0:02:37]} 10. Qe2+ {[%clk 0:02:43]}  Kf8 {[%clk 0:02:38]} 11. Nh3 {[%clk 0:02:28]}  c6 {[%clk 0:02:28]} 12. O-O {[%clk 0:02:25]}  Nbd7 {[%clk 0:02:27]} 13. Rae1 {[%clk 0:02:25]}  Bf5 {[%clk 0:02:22]} 14. Nf4 {[%clk 0:02:20]}  Kg8 {[%clk 0:02:18]} 15. c4 {[%clk 0:02:13]}  d4 {[%clk 0:02:09]} 16. Nf3 {[%clk 0:02:07]}  Qb6 {[%clk 0:02:03]} 17. Qc2 {[%clk 0:01:55]}  Rd8 {[%clk 0:01:48]} 18. h3 {[%clk 0:01:47]}  Kh7 {[%clk 0:01:24]} 19. Nh4 {[%clk 0:01:40]}  Bg6 {[%clk 0:01:20]} 20. Nhxg6 {[%clk 0:01:36]}  fxg6 {[%clk 0:01:21]} 21. Ne6 {[%clk 0:01:34]}  Rde8 {[%clk 0:01:17]} 22. f4 {[%clk 0:01:32]}  Re7 {[%clk 0:01:07]} 23. Nxc5 {[%clk 0:01:29]}  Qxc5 {[%clk 0:00:48]} 24. Qf2 {[%clk 0:01:04]}  Rhe8 {[%clk 0:00:34]} 25. Rxe7 {[%clk 0:01:03]}  Rxe7 {[%clk 0:00:35]} 26. Qxd4 {[%clk 0:01:01]}  Re2 {[%clk 0:00:30]} 27. Rf2 {[%clk 0:01:00]}  Re1+ {[%clk 0:00:27]} 28. Kh2 {[%clk 0:00:54]}  Qe7 {[%clk 0:00:27]} 29. Bf3 {[%clk 0:00:49]}  Nc5 {[%clk 0:00:20]} 30. b4 {[%clk 0:00:49]}  axb4 {[%clk 0:00:20]} 31. axb4 {[%clk 0:00:50]}  Na4 {[%clk 0:00:19]} 32. c5 {[%clk 0:00:47]}  Nxb2 {[%clk 0:00:19]} 33. Qxb2 {[%clk 0:00:48]}  Re3 {[%clk 0:00:19]} 34. Qd4 {[%clk 0:00:44]}  h5 {[%clk 0:00:19]} 35. Kg2 {[%clk 0:00:41]}  Re1 {[%clk 0:00:19]} 36. g4 {[%clk 0:00:36]}  hxg4 {[%clk 0:00:08]} 37. hxg4 {[%clk 0:00:37]}  Qe6 {[%clk 0:00:08]} 38. Kh3 {[%clk 0:00:18]}  Nxg4 {[%clk 0:00:05]} 39. Bxg4 {[%clk 0:00:11]}  Rh1+ {[%clk 0:00:06]} 40. Kg2 {[%clk 0:00:10]}  Qe1 {[%clk 0:00:06]} 41. Kf3 {[%clk 0:00:07]}  Qd1+ {[%clk 0:00:06]} 42. Re2 {[%clk 0:00:06]}  Rf1+ {[%clk 0:00:06]} 43. Ke4 {[%clk 0:00:06]}  Rg1 {[%clk 0:00:05]} 44. Rh2+ {[%clk 0:00:06]}  Kg8 {[%clk 0:00:06]} 45. Bxd1 {[%clk 0:00:07]} 1-0


[Site "https://www.chess.com"]

[Event "Titled Tuesday Blitz March 28 Early 2023"]
[White "Lazavik, Denis"]
[Black "Drygalov, Andrey"]
[WhiteFideId "13515110"]
[BlackFideId "24171735"]
[WhiteElo "2560"]
[BlackElo "2471"]
[Result "1-0"]
[Round "11"]
[TimeControl "180+2"]
[Date "2023.03.28"]
[WhiteClock "0:02:10"]
[BlackClock "0:00:39"]

1. d4 {[%clk 0:03:00]}  Nf6 {[%clk 0:03:00]} 2. c4 {[%clk 0:03:01]}  e6 {[%clk 0:03:00]} 3. Nf3 {[%clk 0:03:02]}  d5 {[%clk 0:03:01]} 4. g3 {[%clk 0:03:02]}  Bb4+ {[%clk 0:03:00]} 5. Bd2 {[%clk 0:03:03]}  Be7 {[%clk 0:03:01]} 6. Bg2 {[%clk 0:03:03]}  O-O {[%clk 0:03:01]} 7. O-O {[%clk 0:03:01]}  Nbd7 {[%clk 0:03:02]} 8. Qc2 {[%clk 0:03:00]}  c6 {[%clk 0:03:02]} 9. Bf4 {[%clk 0:03:01]}  b6 {[%clk 0:03:02]} 10. cxd5 {[%clk 0:03:02]}  cxd5 {[%clk 0:03:01]} 11. Rc1 {[%clk 0:03:02]}  Ba6 {[%clk 0:02:57]} 12. Nc3 {[%clk 0:03:02]}  Nh5 {[%clk 0:02:49]} 13. e3 {[%clk 0:03:01]}  Nxf4 {[%clk 0:02:30]} 14. exf4 {[%clk 0:03:02]}  Bb7 {[%clk 0:02:24]} 15. Re1 {[%clk 0:03:00]}  Rc8 {[%clk 0:02:21]} 16. f5 {[%clk 0:02:59]}  exf5 {[%clk 0:02:15]} 17. Qxf5 {[%clk 0:03:00]}  Nf6 {[%clk 0:02:02]} 18. Ne5 {[%clk 0:02:59]}  Bb4 {[%clk 0:01:59]} 19. Re3 {[%clk 0:02:58]}  Bxc3 {[%clk 0:01:34]} 20. bxc3 {[%clk 0:02:58]}  Ne4 {[%clk 0:01:35]} 21. Rc1 {[%clk 0:02:48]}  f6 {[%clk 0:01:34]} 22. Qe6+ {[%clk 0:02:46]}  Kh8 {[%clk 0:01:32]} 23. Nf7+ {[%clk 0:02:46]}  Rxf7 {[%clk 0:01:33]} 24. Qxf7 {[%clk 0:02:47]}  Rc7 {[%clk 0:01:32]} 25. Qh5 {[%clk 0:02:46]}  g6 {[%clk 0:01:25]} 26. Qe2 {[%clk 0:02:45]}  Kg7 {[%clk 0:01:19]} 27. Re1 {[%clk 0:02:43]}  Qd6 {[%clk 0:00:46]} 28. c4 {[%clk 0:02:40]}  f5 {[%clk 0:00:47]} 29. f3 {[%clk 0:02:39]}  Ng5 {[%clk 0:00:47]} 30. Re7+ {[%clk 0:02:38]}  Nf7 {[%clk 0:00:47]} 31. Rxc7 {[%clk 0:02:18]}  Qxc7 {[%clk 0:00:48]} 32. f4 {[%clk 0:02:13]}  dxc4 {[%clk 0:00:42]} 33. Bxb7 {[%clk 0:02:13]}  Qxb7 {[%clk 0:00:43]} 34. Qxc4 {[%clk 0:02:13]}  Nd6 {[%clk 0:00:43]} 35. Qd3 {[%clk 0:02:12]}  Ne4 {[%clk 0:00:43]} 36. d5 {[%clk 0:02:13]}  Qd7 {[%clk 0:00:44]} 37. Qd4+ {[%clk 0:02:13]}  Kh6 {[%clk 0:00:43]} 38. d6 {[%clk 0:02:12]}  b5 {[%clk 0:00:39]} 39. g4 {[%clk 0:02:10]} 1-0


[Site "https://www.chess.com"]

[Event "Titled Tuesday Blitz March 28 Early 2023"]
[White "Duda, Jan-Krzysztof"]
[Black "Shimanov, Aleksandr"]
[WhiteFideId "1170546"]
[BlackFideId "4198603"]
[WhiteElo "2790"]
[BlackElo "2631"]
[Result "1/2-1/2"]
[Round "11"]
[TimeControl "180+2"]
[Date "2023.03.28"]
[WhiteClock "0:00:05"]
[BlackClock "0:00:05"]

1. d4 {[%clk 0:03:00]}  Nf6 {[%clk 0:02:58]} 2. c4 {[%clk 0:03:00]}  g6 {[%clk 0:02:59]} 3. g3 {[%clk 0:02:59]}  Bg7 {[%clk 0:02:59]} 4. Bg2 {[%clk 0:02:59]}  O-O {[%clk 0:02:59]} 5. e4 {[%clk 0:02:59]}  d6 {[%clk 0:02:59]} 6. Nc3 {[%clk 0:03:00]}  c5 {[%clk 0:02:58]} 7. Nge2 {[%clk 0:02:57]}  Nc6 {[%clk 0:02:51]} 8. d5 {[%clk 0:02:57]}  Na5 {[%clk 0:02:49]} 9. b3 {[%clk 0:02:57]}  a6 {[%clk 0:02:48]} 10. a4 {[%clk 0:02:56]}  e6 {[%clk 0:02:45]} 11. O-O {[%clk 0:02:54]}  exd5 {[%clk 0:02:45]} 12. exd5 {[%clk 0:02:46]}  Bf5 {[%clk 0:02:41]} 13. h3 {[%clk 0:02:36]}  h5 {[%clk 0:02:40]} 14. Bg5 {[%clk 0:02:36]}  Qd7 {[%clk 0:02:37]} 15. Kh2 {[%clk 0:02:35]}  Rfe8 {[%clk 0:02:34]} 16. Ra2 {[%clk 0:02:29]}  b6 {[%clk 0:02:29]} 17. f3 {[%clk 0:02:24]}  Nh7 {[%clk 0:02:16]} 18. Bd2 {[%clk 0:02:23]}  Be5 {[%clk 0:02:07]} 19. Ne4 {[%clk 0:02:06]}  h4 {[%clk 0:01:55]} 20. Bc3 {[%clk 0:01:51]}  hxg3+ {[%clk 0:01:51]} 21. N4xg3 {[%clk 0:01:49]}  Bxc3 {[%clk 0:01:48]} 22. Nxc3 {[%clk 0:01:50]}  Re3 {[%clk 0:01:48]} 23. Nce4 {[%clk 0:01:39]}  Rxb3 {[%clk 0:01:41]} 24. Nxf5 {[%clk 0:01:33]}  Qxf5 {[%clk 0:01:40]} 25. f4 {[%clk 0:01:33]}  Rd8 {[%clk 0:01:37]} 26. Re2 {[%clk 0:01:21]}  Nf6 {[%clk 0:01:31]} 27. Ng3 {[%clk 0:01:11]}  Qd3 {[%clk 0:01:19]} 28. Qe1 {[%clk 0:01:12]}  Qc3 {[%clk 0:01:12]} 29. Qf2 {[%clk 0:00:17]}  Nxc4 {[%clk 0:01:12]} 30. Rfe1 {[%clk 0:00:02]}  Qd4 {[%clk 0:00:50]} 31. Ne4 {[%clk 0:00:02]}  Qxf2 {[%clk 0:00:38]} 32. Nxf2 {[%clk 0:00:03]}  b5 {[%clk 0:00:34]} 33. axb5 {[%clk 0:00:02]}  axb5 {[%clk 0:00:35]} 34. Re7 {[%clk 0:00:02]}  b4 {[%clk 0:00:32]} 35. Ng4 {[%clk 0:00:02]}  Nxg4+ {[%clk 0:00:30]} 36. hxg4 {[%clk 0:00:03]}  Kg7 {[%clk 0:00:27]} 37. g5 {[%clk 0:00:03]}  Ne3 {[%clk 0:00:27]} 38. R1xe3 {[%clk 0:00:02]}  Rxe3 {[%clk 0:00:27]} 39. Rxe3 {[%clk 0:00:03]}  c4 {[%clk 0:00:27]} 40. Bf1 {[%clk 0:00:03]}  c3 {[%clk 0:00:25]} 41. Bd3 {[%clk 0:00:02]}  b3 {[%clk 0:00:24]} 42. Bc2 {[%clk 0:00:02]}  Rc8 {[%clk 0:00:07]} 43. Bxb3 {[%clk 0:00:02]}  c2 {[%clk 0:00:08]} 44. Bxc2 {[%clk 0:00:02]}  Rxc2+ {[%clk 0:00:09]} 45. Kg3 {[%clk 0:00:03]}  Rd2 {[%clk 0:00:10]} 46. Re8 {[%clk 0:00:02]}  Rxd5 {[%clk 0:00:10]} 47. Rd8 {[%clk 0:00:03]}  Rd3+ {[%clk 0:00:10]} 48. Kf2 {[%clk 0:00:03]}  d5 {[%clk 0:00:10]} 49. Ke2 {[%clk 0:00:04]}  Rd4 {[%clk 0:00:10]} 50. Ke3 {[%clk 0:00:04]}  Rd1 {[%clk 0:00:10]} 51. Ke2 {[%clk 0:00:04]}  Rd4 {[%clk 0:00:10]} 52. Kf3 {[%clk 0:00:04]}  f5 {[%clk 0:00:07]} 53. Rd7+ {[%clk 0:00:03]}  Kf8 {[%clk 0:00:07]} 54. Ke3 {[%clk 0:00:03]}  Re4+ {[%clk 0:00:07]} 55. Kf3 {[%clk 0:00:03]}  d4 {[%clk 0:00:08]} 56. Kg3 {[%clk 0:00:03]}  Re3+ {[%clk 0:00:07]} 57. Kf2 {[%clk 0:00:03]}  Rd3 {[%clk 0:00:08]} 58. Ke2 {[%clk 0:00:03]}  Re3+ {[%clk 0:00:08]} 59. Kf2 {[%clk 0:00:04]}  Re4 {[%clk 0:00:08]} 60. Kg3 {[%clk 0:00:04]}  Kg8 {[%clk 0:00:08]} 61. Kf3 {[%clk 0:00:03]}  Re3+ {[%clk 0:00:06]} 62. Kf2 {[%clk 0:00:04]}  Re4 {[%clk 0:00:07]} 63. Kg3 {[%clk 0:00:04]}  Kf8 {[%clk 0:00:08]} 64. Kf3 {[%clk 0:00:04]}  Ke8 {[%clk 0:00:08]} 65. Rd6 {[%clk 0:00:04]}  Kf7 {[%clk 0:00:08]} 66. Rf6+ {[%clk 0:00:04]}  Kg7 {[%clk 0:00:07]} 67. Rd6 {[%clk 0:00:04]}  Re3+ {[%clk 0:00:04]} 68. Kf2 {[%clk 0:00:04]}  Re4 {[%clk 0:00:04]} 69. Kg3 {[%clk 0:00:05]}  Re3+ {[%clk 0:00:04]} 70. Kh4 {[%clk 0:00:05]}  Re4 {[%clk 0:00:05]} 71. Kg3 {[%clk 0:00:05]}  Re3+ {[%clk 0:00:04]} 72. Kh4 {[%clk 0:00:05]}  d3 {[%clk 0:00:04]} 73. Rxd3 {[%clk 0:00:05]}  Rxd3 {[%clk 0:00:05]} 1/2-1/2


[Site "https://www.chess.com"]

[Event "Titled Tuesday Blitz March 28 Early 2023"]
[White "Vidit, Santosh Gujrathi"]
[Black "Sasikiran, Krishnan"]
[WhiteFideId "5029465"]
[BlackFideId "5004985"]
[WhiteElo "2651"]
[BlackElo "2567"]
[Result "1-0"]
[Round "11"]
[TimeControl "180+2"]
[Date "2023.03.28"]
[WhiteClock "0:00:18"]
[BlackClock "0:00:47"]

1. e4 {[%clk 0:02:55]}  c5 {[%clk 0:03:00]} 2. Nf3 {[%clk 0:02:53]}  d6 {[%clk 0:03:00]} 3. d4 {[%clk 0:02:51]}  cxd4 {[%clk 0:03:01]} 4. Nxd4 {[%clk 0:02:52]}  Nf6 {[%clk 0:03:02]} 5. Nc3 {[%clk 0:02:52]}  a6 {[%clk 0:03:02]} 6. Be3 {[%clk 0:02:49]}  e5 {[%clk 0:03:01]} 7. Nb3 {[%clk 0:02:50]}  Be6 {[%clk 0:03:00]} 8. f3 {[%clk 0:02:50]}  h5 {[%clk 0:02:59]} 9. Qd2 {[%clk 0:02:46]}  Nbd7 {[%clk 0:02:59]} 10. Nd5 {[%clk 0:02:37]}  Bxd5 {[%clk 0:02:49]} 11. exd5 {[%clk 0:02:38]}  g6 {[%clk 0:02:48]} 12. O-O-O {[%clk 0:02:37]}  Nb6 {[%clk 0:02:47]} 13. Kb1 {[%clk 0:02:36]}  Nbxd5 {[%clk 0:02:44]} 14. Bg5 {[%clk 0:02:34]}  Be7 {[%clk 0:02:40]} 15. Bd3 {[%clk 0:02:33]}  Qc7 {[%clk 0:02:37]} 16. c4 {[%clk 0:02:30]}  Nb6 {[%clk 0:02:36]} 17. Rc1 {[%clk 0:02:31]}  Nbd7 {[%clk 0:02:35]} 18. Na5 {[%clk 0:02:13]}  b6 {[%clk 0:02:27]} 19. Nb3 {[%clk 0:02:13]}  a5 {[%clk 0:02:27]} 20. Qe2 {[%clk 0:02:07]}  a4 {[%clk 0:02:16]} 21. Nd2 {[%clk 0:02:08]}  Nc5 {[%clk 0:02:16]} 22. Bxf6 {[%clk 0:01:47]}  Bxf6 {[%clk 0:02:15]} 23. Ne4 {[%clk 0:01:47]}  Be7 {[%clk 0:02:10]} 24. Nc3 {[%clk 0:01:45]}  Ne6 {[%clk 0:01:54]} 25. Nd5 {[%clk 0:01:45]}  Qd8 {[%clk 0:01:54]} 26. Be4 {[%clk 0:01:31]}  Rb8 {[%clk 0:01:41]} 27. Rcd1 {[%clk 0:01:30]}  a3 {[%clk 0:01:41]} 28. b3 {[%clk 0:01:29]}  O-O {[%clk 0:01:37]} 29. g4 {[%clk 0:01:26]}  h4 {[%clk 0:01:36]} 30. Qd3 {[%clk 0:01:16]}  Kg7 {[%clk 0:01:36]} 31. Nxe7 {[%clk 0:01:03]}  Qxe7 {[%clk 0:01:35]} 32. Qxd6 {[%clk 0:01:04]}  Qf6 {[%clk 0:01:33]} 33. Qxa3 {[%clk 0:01:02]}  Nc5 {[%clk 0:01:33]} 34. Bd5 {[%clk 0:00:57]}  Rfd8 {[%clk 0:01:26]} 35. Rhe1 {[%clk 0:00:56]}  Ne6 {[%clk 0:01:19]} 36. Qb2 {[%clk 0:00:53]}  Nd4 {[%clk 0:01:18]} 37. Rd3 {[%clk 0:00:48]}  b5 {[%clk 0:01:18]} 38. Ree3 {[%clk 0:00:40]}  h3 {[%clk 0:01:09]} 39. Qf2 {[%clk 0:00:34]}  bxc4 {[%clk 0:01:07]} 40. Bxc4 {[%clk 0:00:35]}  Rdc8 {[%clk 0:01:07]} 41. Rc3 {[%clk 0:00:29]}  Qf4 {[%clk 0:01:04]} 42. Re4 {[%clk 0:00:30]}  Qf6 {[%clk 0:00:57]} 43. Qe3 {[%clk 0:00:27]}  Rd8 {[%clk 0:00:53]} 44. Rxe5 {[%clk 0:00:19]}  Nxf3 {[%clk 0:00:53]} 45. Qxf3 {[%clk 0:00:16]}  Qxe5 {[%clk 0:00:53]} 46. Qxf7+ {[%clk 0:00:17]}  Kh6 {[%clk 0:00:52]} 47. g5+ {[%clk 0:00:17]}  Kxg5 {[%clk 0:00:49]} 48. Rg3+ {[%clk 0:00:17]}  Qxg3 {[%clk 0:00:48]} 49. hxg3 {[%clk 0:00:18]}  Rf8 {[%clk 0:00:47]} 50. Qe7+ {[%clk 0:00:18]}  Kg4 {[%clk 0:00:47]} 51. Qh4+ {[%clk 0:00:18]}  Kf3 {[%clk 0:00:47]} 52. Qxh3 {[%clk 0:00:18]} 1-0


[Site "https://www.chess.com"]

[Event "Titled Tuesday Blitz March 28 Early 2023"]
[White "Rustemov, Alexander"]
[Black "Sarana, Alexey"]
[WhiteFideId "4119002"]
[BlackFideId "24133795"]
[WhiteElo "2870"]
[BlackElo "2714"]
[Result "0-1"]
[Round "11"]
[TimeControl "180+2"]
[Date "2023.03.28"]
[WhiteClock "0:00:02"]
[BlackClock "0:00:17"]

1. d4 {[%clk 0:03:00]}  Nf6 {[%clk 0:01:09]} 2. c4 {[%clk 0:01:10]}  e6 {[%clk 0:01:09]} 3. Nf3 {[%clk 0:01:10]}  d5 {[%clk 0:01:09]} 4. cxd5 {[%clk 0:01:10]}  exd5 {[%clk 0:01:09]} 5. Bg5 {[%clk 0:01:11]}  h6 {[%clk 0:01:08]} 6. Bh4 {[%clk 0:01:11]}  Bb4+ {[%clk 0:01:06]} 7. Nbd2 {[%clk 0:01:08]}  c6 {[%clk 0:01:05]} 8. e3 {[%clk 0:01:07]}  g5 {[%clk 0:00:52]} 9. Bg3 {[%clk 0:01:06]}  Bf5 {[%clk 0:00:53]} 10. a3 {[%clk 0:01:04]}  Be7 {[%clk 0:00:52]} 11. h4 {[%clk 0:01:00]}  g4 {[%clk 0:00:51]} 12. Ne5 {[%clk 0:01:00]}  Nbd7 {[%clk 0:00:51]} 13. h5 {[%clk 0:00:43]}  Nxe5 {[%clk 0:00:36]} 14. Bxe5 {[%clk 0:00:42]}  Qd7 {[%clk 0:00:37]} 15. Qb3 {[%clk 0:00:38]}  Rg8 {[%clk 0:00:31]} 16. Bd3 {[%clk 0:00:38]}  Rg5 {[%clk 0:00:21]} 17. Bf4 {[%clk 0:00:27]}  Bxd3 {[%clk 0:00:20]} 18. Qxd3 {[%clk 0:00:19]}  Rxh5 {[%clk 0:00:20]} 19. Rxh5 {[%clk 0:00:19]}  Nxh5 {[%clk 0:00:20]} 20. Bxh6 {[%clk 0:00:14]}  Qe6 {[%clk 0:00:20]} 21. Qh7 {[%clk 0:00:13]}  O-O-O {[%clk 0:00:20]} 22. O-O-O {[%clk 0:00:12]}  Bf6 {[%clk 0:00:18]} 23. Bf4 {[%clk 0:00:05]}  Nxf4 {[%clk 0:00:17]} 24. exf4 {[%clk 0:00:06]}  Bxd4 {[%clk 0:00:17]} 25. f5 {[%clk 0:00:05]}  Qf6 {[%clk 0:00:17]} 26. b4 {[%clk 0:00:02]}  Rh8 {[%clk 0:00:17]} 0-1


[Site "https://www.chess.com"]

[Event "Titled Tuesday Blitz March 28 Early 2023"]
[White "Ashraf, Artin"]
[Black "Dominguez Perez, Leinier"]
[WhiteFideId "22514805"]
[BlackFideId "3503240"]
[WhiteElo "2188"]
[BlackElo "2647"]
[Result "1-0"]
[Round "11"]
[TimeControl "180+2"]
[Date "2023.03.28"]
[WhiteClock "0:00:19"]
[BlackClock "0:00:02"]

1. Nf3 {[%clk 0:02:59]}  Nf6 {[%clk 0:02:59]} 2. g3 {[%clk 0:03:00]}  c5 {[%clk 0:02:59]} 3. Bg2 {[%clk 0:02:58]}  Nc6 {[%clk 0:02:59]} 4. c4 {[%clk 0:02:56]}  d5 {[%clk 0:02:58]} 5. cxd5 {[%clk 0:02:47]}  Nxd5 {[%clk 0:02:59]} 6. d4 {[%clk 0:02:46]}  cxd4 {[%clk 0:02:59]} 7. Nxd4 {[%clk 0:02:46]}  Ndb4 {[%clk 0:02:59]} 8. Nxc6 {[%clk 0:02:46]}  Qxd1+ {[%clk 0:02:59]} 9. Kxd1 {[%clk 0:02:46]}  Nxc6 {[%clk 0:03:00]} 10. Bxc6+ {[%clk 0:02:44]}  bxc6 {[%clk 0:03:00]} 11. f3 {[%clk 0:02:40]}  h5 {[%clk 0:03:00]} 12. h4 {[%clk 0:02:38]}  e5 {[%clk 0:02:51]} 13. Nc3 {[%clk 0:02:27]}  Be6 {[%clk 0:02:44]} 14. Be3 {[%clk 0:02:24]}  Bb4 {[%clk 0:02:27]} 15. Kc2 {[%clk 0:02:21]}  Ke7 {[%clk 0:02:23]} 16. Bf2 {[%clk 0:02:20]}  Rhd8 {[%clk 0:02:20]} 17. e4 {[%clk 0:02:15]}  a5 {[%clk 0:02:09]} 18. b3 {[%clk 0:02:04]}  a4 {[%clk 0:01:47]} 19. Rhd1 {[%clk 0:01:30]}  axb3+ {[%clk 0:01:33]} 20. axb3 {[%clk 0:01:30]}  Rxd1 {[%clk 0:01:16]} 21. Rxd1 {[%clk 0:01:22]}  f5 {[%clk 0:01:14]} 22. Na4 {[%clk 0:01:10]}  fxe4 {[%clk 0:01:12]} 23. fxe4 {[%clk 0:01:11]}  Bg4 {[%clk 0:00:46]} 24. Rd3 {[%clk 0:00:42]}  Be2 {[%clk 0:00:43]} 25. Rd7+ {[%clk 0:00:37]}  Kxd7 {[%clk 0:00:41]} 26. Nb6+ {[%clk 0:00:36]}  Kd6 {[%clk 0:00:23]} 27. Nxa8 {[%clk 0:00:37]}  Ba5 {[%clk 0:00:01]} 28. Nb6 {[%clk 0:00:20]}  Ke6 {[%clk 0:00:01]} 29. Na4 {[%clk 0:00:20]}  Bb5 {[%clk 0:00:01]} 30. Nc5+ {[%clk 0:00:20]}  Kf7 {[%clk 0:00:01]} 31. Nd3 {[%clk 0:00:19]}  Bxd3+ {[%clk 0:00:01]} 32. Kxd3 {[%clk 0:00:20]}  Ke6 {[%clk 0:00:01]} 33. Bc5 {[%clk 0:00:19]}  g6 {[%clk 0:00:02]} 34. Kc4 {[%clk 0:00:19]} 1-0


[Site "https://www.chess.com"]